bitfinex-derivatives/quotes_SOLF0:USTF0_20250419
["timestamp","ask_amount","ask_price","bid_price","bid_amount"]
[1745087624490,5.02770703,138.63,138.62,7.2151]
[1745087628389,5.02770703,138.63,138.62,16.16556083]
[1745087628692,34.4524,138.68,138.65,7.2136]
[1745087629092,27.24,138.68,138.64,16.16436083]
[1745087629292,7.2129,138.67,138.64,16.16436083]
[1745087630187,7.2129,138.67,138.64,7.2139]
[1745087630394,8.95046083,138.67,138.6,8.95046083]
[1745087630888,7.2139,138.65,138.62,7.215]
[1745087637495,34.4534,138.66,138.63,7.2147]
[1745087637698,27.24,138.66,138.62,8.95046083]
[1745087638399,27.24,138.66,138.64,7.2138]
[1745087640303,34.4532,138.66,138.64,7.2138]
[1745087640599,4.90074802,138.65,138.64,7.2138]
[1745087640904,7.2142,138.64,138.6,8.95046083]
[1745087641100,4.90031017,138.63,138.6,8.95046083]
[1745087641301,4.90031017,138.62,138.6,8.95046083]
[1745087641503,4.90031017,138.61,138.6,16.16676083]
[1745087645602,7.2117,138.69,138.6,8.95046083]
[1745087645807,27.22,138.7,138.65,8.95046083]
[1745087646303,34.4314,138.7,138.67,7.2126]
[1745087647405,27.22,138.7,138.67,7.2126]
[1745087648007,27.22,138.7,138.68,7.2121]
[1745087648208,27.22,138.7,138.67,8.95046083]
[1745087648506,27.22,138.7,138.69,7.2116]
[1745087648706,571.14,138.72,138.69,7.2116]
[1745087649107,38.3362,138.73,138.69,7.2116]
[1745087649607,38.3362,138.73,138.7,7.2109]
[1745087650307,7.21,138.72,138.7,7.2109]
[1745087650608,7.21,138.72,138.69,7.2115]
[1745087651105,38.3361,138.73,138.7,7.2111]
[1745087651309,47.28656083,138.73,138.7,7.2111]
[1745087652210,7.2101,138.72,138.7,7.2111]
[1745087653810,31.1264,138.73,138.71,7.2104]
[1745087654311,31.1264,138.73,138.7,7.2109]
[1745087654712,31.1264,138.73,138.69,8.95046083]
[1745087655010,7.2111,138.7,138.67,16.16276083]
[1745087656013,7.2116,138.69,138.66,7.2129]
[1745087656411,7.2113,138.7,138.67,7.2126]
[1745087659517,7.2107,138.71,138.68,7.2121]
[1745087659717,8.95046083,138.72,138.67,8.95046083]
[1745087660219,7.2106,138.71,138.68,7.2118]
[1745087660820,7.2106,138.71,138.69,7.2114]
[1745087661719,7.2106,138.71,138.68,7.2119]
[1745087662723,31.1264,138.73,138.67,8.95046083]
[1745087663022,7.2102,138.72,138.69,8.95046083]
[1745087663220,29.1974,138.73,138.67,8.95046083]
[1745087663416,7.2105,138.71,138.68,7.2116]
[1745087663623,8.95046083,138.71,138.65,8.95046083]
[1745087663819,7.2108,138.71,138.68,7.2117]
[1745087664020,8.95046083,138.72,138.68,7.2117]
[1745087664417,7.211,138.71,138.68,7.2117]
[1745087665123,16.16056083,138.72,138.67,8.95046083]
[1745087665426,7.2101,138.72,138.69,8.95046083]
[1745087665624,29.1974,138.73,138.69,8.95046083]
[1745087665821,34.4098,138.73,138.69,8.95046083]
[1745087666321,34.4098,138.73,138.7,7.2109]
[1745087667425,7.2098,138.73,138.7,7.2109]
[1745087670026,7.2101,138.72,138.7,7.2109]
[1745087671832,7.2101,138.72,138.69,16.16186083]
[1745087672128,7.2101,138.72,138.69,7.2114]
[1745087673234,8.95046083,138.7,138.65,8.95046083]
[1745087673826,16.16186083,138.7,138.67,7.2125]
[1745087674130,8.95046083,138.72,138.67,8.95046083]
[1745087674329,1.8711,138.73,138.67,8.95046083]
[1745087674629,10.82156083,138.73,138.67,8.95046083]
[1745087674829,7.2104,138.72,138.69,7.2113]
[1745087675229,10.82156083,138.73,138.69,7.2113]
[1745087675831,7.2101,138.72,138.69,7.2113]
[1745087677737,9.0808,138.73,138.71,7.2105]
[1745087677927,7.2097,138.73,138.71,7.2105]
[1745087678736,27.18,138.74,138.72,7.21]
[1745087680932,27.18,138.74,138.71,7.2104]
[1745087682134,27.18,138.74,138.68,5.7824]
[1745087682135,36.13046083,138.74,138.68,10.93436083]
[1745087682529,36.13046083,138.74,138.68,8.95046083]
[1745087683031,7.2103,138.72,138.69,7.2115]
[1745087683731,36.13046083,138.74,138.69,7.2115]
[1745087684433,27.18,138.73,138.68,8.95046083]
[1745087684929,8.95046083,138.72,138.68,8.95046083]
[1745087685128,8.95046083,138.72,138.66,8.95046083]
[1745087685534,7.2114,138.7,138.67,7.2123]
[1745087685737,8.95046083,138.72,138.67,7.2123]
[1745087688435,27.18,138.73,138.67,7.2123]
[1745087688630,8.95046083,138.72,138.67,7.2123]
[1745087689231,7.2115,138.7,138.67,7.2123]
[1745087690538,7.2117,138.69,138.67,7.2123]
[1745087690738,8.95046083,138.72,138.67,7.2123]
[1745087691140,7.2113,138.7,138.67,7.2123]
[1745087693643,36.13046083,138.73,138.66,16.16346083]
[1745087694441,7.2114,138.7,138.66,16.16346083]
[1745087695442,7.2114,138.7,138.67,7.2125]
[1745087701247,7.2114,138.7,138.66,8.95046083]
[1745087701748,7.2114,138.7,138.67,7.2123]
[1745087703351,27.18,138.73,138.68,8.95046083]
[1745087703551,27.18,138.73,138.7,8.95046083]
[1745087703749,34.3898,138.73,138.7,16.16126083]
[1745087705553,34.3898,138.73,138.71,7.2103]
[1745087708153,27.18,138.73,138.72,7.21]
[1745087708456,27.16,138.76,138.72,8.95046083]
[1745087708652,580.05046083,138.79,138.74,8.95046083]
[1745087708956,27.16,138.78,138.75,7.2085]
[1745087709348,27.16,138.78,138.76,7.2078]
[1745087710455,34.3669,138.78,138.75,7.2082]
[1745087710755,34.3669,138.78,138.74,8.95046083]
[1745087711356,27.16,138.78,138.74,8.95046083]
[1745087711557,27.16,138.78,138.75,7.2084]
[1745087712158,34.3674,138.78,138.75,7.2084]
[1745087714558,34.3674,138.78,138.76,7.2078]
[1745087714760,27.16,138.78,138.76,7.2078]
[1745087715266,7.2066,138.79,138.76,16.15826083]
[1745087715659,43.31656083,138.8,138.77,7.2074]
[1745087717059,7.2064,138.79,138.77,7.2074]
[1745087717260,7.2064,138.79,138.76,16.15816083]
[1745087719564,36.11046083,138.8,138.73,8.95046083]
[1745087719962,7.2075,138.77,138.74,7.2086]
[1745087720364,7.2075,138.77,138.73,8.95046083]
[1745087721264,7.2075,138.77,138.75,7.2084]
[1745087721562,7.2075,138.77,138.73,8.95046083]
[1745087721766,36.11046083,138.76,138.71,7.2103]
[1745087722457,7.2093,138.74,138.71,7.2103]
[1745087723964,7.2087,138.75,138.71,7.2103]
[1745087724160,7.2087,138.75,138.72,7.2099]
[1745087730166,7.2091,138.74,138.71,7.2103]
[1745087731268,7.2091,138.74,138.72,7.21]
[1745087732775,7.2091,138.74,138.71,7.2104]
[1745087733772,7.2095,138.73,138.71,7.2104]
[1745087739584,8.95046083,138.72,138.66,27.14]
[1745087739872,8.95046083,138.7,138.64,3.8497]
[1745087740076,8.95046083,138.68,138.63,38.12916083]
[1745087740376,8.95046083,138.68,138.66,7.2129]
[1745087740578,8.95046083,138.68,138.63,38.12916083]
[1745087740770,7.2118,138.69,138.66,7.2128]
[1745087743780,7.2118,138.69,138.67,7.2126]
[1745087746382,16.16166083,138.7,138.67,7.2126]
[1745087749587,7.2117,138.69,138.66,7.213]
[1745087751489,7.2117,138.69,138.67,7.2125]
[1745087752386,16.16176083,138.7,138.67,7.2125]
[1745087754490,8.95046083,138.7,138.68,7.2118]
[1745087754686,27.14,138.72,138.63,29.1787]
[1745087754687,36.09046083,138.72,138.67,8.95046083]
[1745087755288,43.30056083,138.72,138.67,8.95046083]
[1745087755889,43.30056083,138.72,138.69,7.2113]
[1745087756389,8.95046083,138.7,138.67,7.2123]
[1745087756690,8.95046083,138.7,138.63,38.12916083]
[1745087756887,7.2119,138.69,138.63,38.12916083]
[1745087757094,7.2119,138.69,138.66,7.213]
[1745087762695,7.2119,138.69,138.67,7.2126]
[1745087764494,7.2119,138.69,138.66,7.2129]
[1745087767394,16.16176083,138.7,138.67,7.2125]
[1745087770099,16.16176083,138.7,138.65,8.95046083]
[1745087770304,36.09046083,138.72,138.67,8.95046083]
[1745087770597,36.09046083,138.72,138.68,7.2118]
[1745087770805,36.09046083,138.72,138.67,8.95046083]
[1745087771198,43.30076083,138.72,138.67,8.95046083]
[1745087771799,43.30076083,138.72,138.69,7.2113]
[1745087772906,7.2105,138.71,138.69,7.2113]
[1745087773200,8.95046083,138.7,138.65,8.95046083]
[1745087773606,7.2118,138.69,138.65,8.95046083]
[1745087774501,8.95046083,138.7,138.66,7.2129]
[1745087774798,7.2119,138.69,138.66,7.2129]
[1745087775003,8.95046083,138.7,138.66,7.2129]
[1745087775301,7.2119,138.69,138.66,7.2129]
[1745087776306,7.2121,138.68,138.66,7.2129]
[1745087777306,7.2126,138.67,138.63,2.0387]
[1745087778001,7.2126,138.67,138.64,7.2139]
[1745087779107,8.95046083,138.66,138.64,7.2139]
[1745087790618,7.2126,138.67,138.64,7.2139]
[1745087793718,571.06,138.73,138.65,8.95046083]
[1745087793917,607.13046083,138.73,138.67,8.95046083]
[1745087794219,598.18,138.73,138.67,8.95046083]
[1745087794422,614.34016083,138.73,138.67,8.95046083]
[1745087795022,614.34016083,138.73,138.69,7.2111]
[1745087795217,614.34016083,138.73,138.67,8.95046083]
[1745087796122,614.34016083,138.73,138.69,7.2111]
[1745087797319,7.21,138.72,138.69,7.2111]
[1745087797520,607.13046083,138.73,138.68,7.2118]
[1745087798021,36.07046083,138.73,138.68,7.2118]
[1745087798524,7.2105,138.72,138.68,7.2118]
[1745087799426,8.95046083,138.71,138.65,1.9271]
[1745087799722,8.95046083,138.69,138.64,8.95046083]
[1745087799915,7.2123,138.68,138.64,8.95046083]
[1745087800116,7.2123,138.68,138.65,7.2134]
[1745087805022,7.2123,138.68,138.66,7.2131]
[1745087805224,43.28226083,138.69,138.66,7.2131]
[1745087805935,36.07046083,138.69,138.67,7.2122]
[1745087806130,36.07046083,138.72,138.66,8.95046083]
[1745087806629,43.28076083,138.72,138.69,7.2112]
[1745087807128,34.3303,138.72,138.69,7.2112]
[1745087811530,34.3303,138.72,138.68,8.95046083]
[1745087811734,7.2106,138.71,138.68,8.95046083]
[1745087811937,8.95046083,138.69,138.64,8.95046083]
[1745087812230,7.2124,138.68,138.64,8.95046083]
[1745087812635,7.2124,138.68,138.65,7.2136]
[1745087815537,8.95046083,138.67,138.64,7.2139]
[1745087815838,8.95046083,138.65,138.61,8.95046083]
[1745087816039,8.95046083,138.65,138.59,36.05046083]
[1745087816236,7.2146,138.64,138.59,36.05046083]
[1745087817338,7.2146,138.64,138.6,7.2158]
[1745087817541,7.2146,138.64,138.59,36.05046083]
[1745087817839,7.2146,138.64,138.61,7.2155]
[1745087821647,16.16436083,138.65,138.62,7.2152]
[1745087821942,36.05046083,138.67,138.61,8.95046083]
[1745087822139,43.26336083,138.67,138.64,7.2138]
[1745087823238,36.05046083,138.67,138.61,8.95046083]
[1745087823443,8.95046083,138.65,138.59,36.05046083]
[1745087823643,8.95046083,138.65,138.59,27.1]
[1745087824045,7.2149,138.63,138.6,7.2159]
[1745087825144,7.2144,138.64,138.61,7.2157]
[1745087825547,8.95046083,138.65,138.6,8.95046083]
[1745087826247,7.2142,138.64,138.61,7.2154]
[1745087834553,7.2142,138.64,138.62,7.2152]
[1745087835054,7.2142,138.64,138.6,8.95046083]
[1745087835249,7.2142,138.64,138.61,7.2155]
[1745087847964,7.2147,138.63,138.61,7.2155]
[1745087849667,7.2144,138.64,138.61,7.2155]
[1745087851367,7.2147,138.63,138.61,7.2155]
[1745087851666,8.95046083,138.65,138.61,7.2155]
[1745087852070,7.2144,138.64,138.61,7.2155]
[1745087856771,8.95046083,138.65,138.58,8.95046083]
[1745087857071,8.95046083,138.65,138.6,8.95046083]
[1745087858271,16.16416083,138.65,138.62,7.2147]
[1745087858877,8.95046083,138.65,138.63,7.2146]
[1745087860679,7.2133,138.66,138.64,7.2142]
[1745087860881,7.2133,138.66,138.6,8.95046083]
[1745087861076,8.95046083,138.65,138.62,7.2149]
[1745087861982,8.95046083,138.65,138.61,7.2155]
[1745087862481,7.2146,138.64,138.61,7.2155]
[1745087862781,7.2146,138.64,138.62,7.2152]
[1745087863878,36.05046083,138.67,138.6,8.95046083]
[1745087864380,7.2136,138.66,138.63,7.2143]
[1745087864584,36.05046083,138.67,138.63,7.2143]
[1745087864986,7.2137,138.65,138.63,7.2143]
[1745087866381,16.16416083,138.65,138.63,7.2143]
[1745087866583,16.16416083,138.65,138.62,7.215]
[1745087868989,16.16416083,138.65,138.63,7.2146]
[1745087869288,7.2137,138.65,138.63,7.2146]
[1745087870790,7.2137,138.65,138.62,7.215]
[1745087872195,7.2143,138.64,138.62,7.215]
[1745087872693,8.95046083,138.65,138.61,7.2155]
[1745087873097,7.215,138.63,138.61,7.2155]
[1745087873595,8.95046083,138.65,138.57,5.8972]
[1745087873797,36.03046083,138.63,138.57,5.8972]
[1745087874198,7.216,138.61,138.58,16.16726083]
[1745087875395,7.216,138.61,138.59,7.2167]
[1745087877199,1.8656,138.69,138.6,8.95046083]
[1745087877398,8.95046083,138.67,138.6,8.95046083]
[1745087877798,7.2137,138.65,138.62,7.215]
[1745087878500,7.2137,138.65,138.63,7.2146]
[1745087878701,7.2134,138.66,138.63,7.2146]
[1745087879502,7.2134,138.66,138.64,7.2141]
[1745087879997,7.2134,138.66,138.63,7.2145]
[1745087883411,7.2138,138.65,138.63,7.2145]
[1745087887308,7.2133,138.66,138.64,7.2141]
[1745087889105,36.01046083,138.68,138.62,8.95046083]
[1745087889310,27.06,138.68,138.64,8.95046083]
[1745087889707,34.2724,138.68,138.65,7.2131]
[1745087890309,34.2724,138.68,138.64,8.95046083]
[1745087891309,34.2724,138.68,138.66,7.213]
[1745087911127,34.2724,138.68,138.65,7.2134]
[1745087916531,7.2127,138.67,138.65,7.2134]
[1745087920032,34.2724,138.68,138.65,7.2134]
[1745087921230,34.2724,138.68,138.66,7.213]
[1745087933736,27.06,138.68,138.66,7.213]
[1745087939240,7.2119,138.69,138.66,7.213]
[1745087940542,7.2119,138.69,138.67,7.2126]
[1745087942151,7.2121,138.68,138.66,7.2129]
[1745087944047,34.2119,138.69,138.66,7.2129]
[1745087945847,7.2121,138.68,138.66,7.2129]
[1745087948752,34.2119,138.69,138.66,7.2129]
[1745087950552,7.2121,138.68,138.66,7.2129]
[1745087951452,34.2118,138.69,138.66,7.2129]
[1745087954854,7.2123,138.68,138.66,7.2129]
[1745087955359,34.2118,138.69,138.66,7.2129]
[1745087956760,7.2122,138.68,138.66,7.2129]
[1745087956955,35.95046083,138.69,138.64,8.95046083]
[1745087957156,8.95046083,138.67,138.62,8.95046083]
[1745087957360,7.2134,138.66,138.62,8.95046083]
[1745087957561,7.2134,138.66,138.63,7.2142]
[1745087959359,16.16336083,138.67,138.62,8.95046083]
[1745087959662,35.95046083,138.69,138.64,8.95046083]
[1745087961260,7.2123,138.68,138.65,7.2133]
[1745087961863,7.2128,138.67,138.65,7.2133]
[1745087962065,35.95046083,138.69,138.64,16.16436083]
[1745087962264,35.95046083,138.69,138.64,8.95046083]
[1745087962563,7.2125,138.68,138.65,7.2134]
[1745087962964,35.95046083,138.69,138.65,7.2134]
[1745087963164,7.2129,138.67,138.64,7.2139]
[1745087964565,7.2129,138.67,138.65,7.2134]
[1745087964767,7.2123,138.68,138.65,7.2134]
[1745087965468,27.0,138.69,138.65,8.95046083]
[1745087965670,27.0,138.72,138.67,8.95046083]
[1745087965865,27.0,138.72,138.7,7.2107]
[1745087966067,27.0,138.72,138.67,8.95046083]
[1745087966664,27.0,138.72,138.7,7.2108]
[1745087966970,27.0,138.72,138.69,8.95046083]
[1745087967367,27.0,138.72,138.7,7.2111]
[1745087968269,27.0,138.72,138.71,7.2105]
[1745087969470,7.2094,138.74,138.72,7.21]
[1745087969671,614.29916083,138.75,138.72,7.21]
[1745087970071,607.09046083,138.75,138.73,7.2095]
[1745087970272,614.29896083,138.75,138.71,8.95046083]
[1745087970573,614.29896083,138.75,138.72,7.2097]
[1745087971071,614.29896083,138.75,138.71,16.16076083]
[1745087972573,614.29896083,138.75,138.72,7.2099]
[1745087973174,598.14,138.75,138.73,7.2091]
[1745087973378,26.96,138.75,138.73,7.2091]
[1745087973675,7.2079,138.77,138.73,8.95046083]
[1745087973874,7.2079,138.77,138.74,7.2087]
[1745087974078,8.95046083,138.77,138.68,26.96]
[1745087974265,8.95046083,138.77,138.71,8.95046083]
[1745087974468,8.95046083,138.77,138.72,7.2096]
[1745087974679,7.2086,138.75,138.72,7.2096]
[1745087975978,7.2086,138.75,138.73,7.2094]
[1745087979779,7.2082,138.76,138.73,7.2094]
[1745087984186,8.95046083,138.77,138.71,8.95046083]
[1745087984684,7.2087,138.75,138.72,7.2097]
[1745087985780,7.2082,138.76,138.71,8.95046083]
[1745087985979,7.2082,138.76,138.68,26.96]
[1745087985980,7.2082,138.76,138.73,8.95046083]
[1745087986387,7.2082,138.76,138.73,16.15956083]
[1745087992488,7.2085,138.75,138.73,8.95046083]
[1745087992687,26.96,138.78,138.71,8.95046083]
[1745087992688,8.95046083,138.77,138.71,8.95046083]
[1745087993790,7.2093,138.74,138.71,16.16086083]
[1745087997499,7.2095,138.73,138.71,16.16086083]
[1745087999599,7.2095,138.73,138.71,8.95046083]
[1745088000097,7.2092,138.74,138.71,8.95046083]
[1745088000299,8.95046083,138.77,138.71,16.16066083]
[1745088001203,7.2091,138.74,138.72,7.2099]
[1745088001400,8.95046083,138.77,138.72,7.2099]
[1745088001703,7.2088,138.75,138.72,7.2099]
[1745088001903,8.95046083,138.77,138.72,7.2099]
[1745088002203,7.2088,138.75,138.72,7.2099]
[1745088003805,7.208,138.76,138.71,8.95046083]
[1745088004009,8.95046083,138.77,138.71,8.95046083]
[1745088004707,7.2094,138.74,138.71,16.16076083]
[1745088007411,7.2095,138.73,138.71,16.16076083]
[1745088008011,7.2091,138.74,138.71,16.16076083]
[1745088008612,7.2095,138.73,138.71,16.16076083]
[1745088008912,8.95046083,138.77,138.71,16.16076083]
[1745088009211,7.2096,138.73,138.71,16.16076083]
[1745088012120,7.2092,138.74,138.71,16.16076083]
[1745088014112,7.2092,138.74,138.72,7.2099]
[1745088016419,7.2092,138.74,138.71,16.16086083]
[1745088017918,7.2092,138.74,138.72,7.21]
[1745088019118,7.2092,138.74,138.71,16.16076083]
[1745088019919,7.2092,138.74,138.71,7.2103]
[1745088021119,26.92,138.76,138.71,7.2103]
[1745088021320,8.95046083,138.75,138.69,7.2112]
[1745088021517,8.95046083,138.73,138.67,8.95046083]
[1745088021722,26.92,138.72,138.67,8.95046083]
[1745088022021,7.2109,138.71,138.68,7.2119]
[1745088024120,7.2112,138.7,138.67,16.16286083]
[1745088024313,26.92,138.72,138.67,16.16286083]
[1745088024721,7.2113,138.7,138.67,16.16286083]
[1745088024924,8.95046083,138.71,138.66,7.2129]
[1745088025724,7.2125,138.68,138.65,9.0901]
[1745088026024,8.95046083,138.69,138.63,8.95046083]
[1745088026321,26.92,138.68,138.63,8.95046083]
[1745088026521,34.1323,138.68,138.65,7.2136]
[1745088029225,26.92,138.71,138.65,8.95046083]
[1745088029428,26.92,138.71,138.67,8.95046083]
[1745088029727,7.2113,138.7,138.67,7.2122]
[1745088029925,26.92,138.71,138.65,8.95046083]
[1745088030326,7.2118,138.69,138.66,7.2127]
[1745088031129,8.95046083,138.7,138.63,8.95046083]
[1745088031319,26.92,138.71,138.63,8.95046083]
[1745088031525,35.87046083,138.71,138.65,8.95046083]
[1745088031728,7.2113,138.7,138.67,7.2125]
[1745088032829,7.2113,138.7,138.68,7.2121]
[1745088033230,7.2113,138.7,138.65,8.95046083]
[1745088033430,7.2113,138.7,138.67,7.2122]
[1745088034723,7.2113,138.7,138.68,7.2119]
[1745088034928,43.08116083,138.71,138.68,7.2119]
[1745088035128,35.87046083,138.71,138.68,7.2119]
[1745088036230,7.2112,138.7,138.68,7.2119]
[1745088045042,7.2112,138.7,138.67,16.16286083]
[1745088046841,7.2118,138.69,138.67,7.2124]
[1745088053949,16.16176083,138.7,138.67,7.2124]
[1745088054549,26.92,138.71,138.67,8.95046083]
[1745088054751,26.92,138.71,138.69,8.95046083]
[1745088054948,35.85046083,138.74,138.69,8.95046083]
[1745088055148,7.2098,138.73,138.7,7.2107]
[1745088055349,26.9,138.74,138.71,8.95046083]
[1745088055847,26.9,138.74,138.73,8.95046083]
[1745088056447,26.9,138.74,138.72,7.2098]
[1745088057249,34.1091,138.74,138.72,7.2098]
[1745088057552,34.1091,138.74,138.71,16.16066083]
[1745088057752,7.2105,138.72,138.68,8.95046083]
[1745088058048,8.95046083,138.72,138.67,8.95046083]
[1745088058251,8.95046083,138.72,138.69,7.2115]
[1745088058551,35.85046083,138.74,138.69,7.2115]
[1745088059250,7.2107,138.71,138.69,7.2115]
[1745088060150,7.2107,138.71,138.68,7.2119]
[1745088060351,7.2111,138.7,138.68,7.2119]
[1745088060853,35.83046083,138.7,138.65,8.95046083]
[1745088061043,7.2116,138.69,138.65,8.95046083]
[1745088061551,7.2116,138.69,138.66,7.2127]
[1745088065255,34.0913,138.7,138.65,8.95046083]
[1745088065651,34.0913,138.7,138.67,7.2121]
[1745088067861,34.0913,138.7,138.68,7.212]
[1745088068860,26.88,138.7,138.68,7.212]
[1745088070262,26.88,138.7,138.65,8.95046083]
[1745088071163,26.88,138.7,138.67,8.95046083]
[1745088071763,26.88,138.7,138.68,7.2117]
[1745088072264,26.88,138.7,138.67,8.95046083]
[1745088072665,26.88,138.7,138.68,7.2117]
[1745088074161,26.88,138.7,138.67,8.95046083]
[1745088074365,35.83046083,138.7,138.63,37.77816083]
[1745088074767,16.16306083,138.68,138.65,7.2134]
[1745088074962,7.2126,138.68,138.65,7.2134]
[1745088078768,35.83046083,138.7,138.65,8.95046083]
[1745088078970,1.8637,138.74,138.65,8.95046083]
[1745088078971,102.5217049,138.84,138.68,8.95046083]
[1745088079164,8.95046083,138.81,138.74,8.95046083]
[1745088079369,7.2061,138.8,138.76,7.2079]
[1745088079968,43.03596083,138.81,138.76,7.2079]
[1745088080770,26.88,138.81,138.76,8.95046083]
[1745088081367,35.83046083,138.81,138.76,8.95046083]
[1745088081566,43.03576083,138.81,138.77,7.207]
[1745088081871,34.0853,138.81,138.77,7.207]
[1745088082072,43.03576083,138.81,138.77,7.207]
[1745088082470,43.03576083,138.81,138.78,7.2069]
[1745088083978,35.83046083,138.81,138.78,7.2069]
[1745088084977,43.03586083,138.81,138.78,7.2069]
[1745088086781,35.83046083,138.81,138.78,7.2069]
[1745088087680,43.03596083,138.81,138.78,7.2069]
[1745088088881,35.83046083,138.81,138.72,2.0031]
[1745088089083,35.83046083,138.81,138.75,8.95046083]
[1745088089481,43.03606083,138.81,138.77,7.2071]
[1745088089682,43.03606083,138.81,138.75,8.95046083]
[1745088092085,26.88,138.81,138.75,8.95046083]
[1745088092286,26.88,138.81,138.77,8.95046083]
[1745088093680,26.88,138.81,138.79,7.2059]
[1745088093885,26.88,138.81,138.77,8.95046083]
[1745088094484,26.88,138.81,138.8,7.2059]
[1745088094885,26.88,138.81,138.77,8.95046083]
[1745088095087,26.88,138.81,138.79,7.2061]
[1745088095292,26.88,138.81,138.77,8.95046083]
[1745088095885,26.88,138.81,138.8,7.2059]
[1745088097991,26.88,138.81,138.79,7.2061]
[1745088099794,26.88,138.81,138.77,8.95046083]
[1745088100294,7.2061,138.8,138.75,8.95046083]
[1745088100993,7.2061,138.8,138.77,7.2074]
[1745088103495,7.2061,138.8,138.78,7.2068]
[1745088103891,34.0856,138.81,138.78,7.2068]
[1745088105299,7.2061,138.8,138.77,7.2072]
[1745088107096,8.95046083,138.8,138.74,8.95046083]
[1745088108297,7.2072,138.78,138.75,7.2082]
[1745088109997,8.95046083,138.8,138.76,8.95046083]
[1745088110194,26.88,138.81,138.76,8.95046083]
[1745088110394,26.88,138.81,138.72,28.8431]
[1745088110694,7.2059,138.8,138.77,7.2072]
[1745088110893,16.15636083,138.8,138.77,7.2072]
[1745088112098,7.2064,138.79,138.77,7.2072]
[1745088116505,7.2069,138.78,138.75,7.2081]
[1745088116900,8.95046083,138.8,138.74,8.95046083]
[1745088117100,7.2067,138.79,138.76,7.2079]
[1745088120202,7.2067,138.79,138.77,7.2073]
[1745088120604,16.15656083,138.8,138.77,7.2073]
[1745088121500,7.2061,138.8,138.78,7.2069]
[1745088121707,34.0856,138.81,138.78,7.2069]
[1745088123611,7.2061,138.8,138.77,7.2072]
[1745088133022,7.2064,138.79,138.76,7.2077]
[1745088133222,8.95046083,138.8,138.73,8.95046083]
[1745088133418,8.95046083,138.78,138.71,8.95046083]
[1745088133620,7.2081,138.76,138.73,7.2092]
[1745088134021,7.2085,138.75,138.72,7.2097]
[1745088134625,7.2082,138.76,138.73,7.2095]
[1745088135115,26.8,138.77,138.75,7.2082]
[1745088135319,26.8,138.77,138.73,8.95046083]
[1745088135825,7.2082,138.76,138.73,16.15966083]
[1745088137026,7.2087,138.75,138.72,7.21]
[1745088140932,7.2087,138.75,138.73,7.2094]
[1745088146740,7.2087,138.75,138.72,7.2097]
[1745088147347,7.209,138.74,138.72,7.2097]
[1745088147940,7.2087,138.75,138.72,7.2097]
[1745088149737,7.21,138.72,138.71,8.95046083]
[1745088149937,8.95046083,138.74,138.68,2.0181]
[1745088150141,8.95046083,138.72,138.67,35.77046083]
[1745088150336,8.95046083,138.72,138.67,8.95046083]
[1745088150538,7.2112,138.7,138.67,8.95046083]
[1745088151045,7.2116,138.69,138.67,16.16286083]
[1745088151242,7.2116,138.69,138.67,7.2124]
[1745088152647,7.2113,138.7,138.67,7.2124]
[1745088153262,8.95046083,138.72,138.67,7.2124]
[1745088153263,7.2116,138.69,138.67,7.2124]
[1745088155546,16.16176083,138.7,138.67,7.2124]
[1745088157042,7.2117,138.69,138.67,7.2124]
[1745088157646,7.2122,138.68,138.66,7.2129]
[1745088157847,7.2122,138.68,138.65,10.94706083]
[1745088159248,7.2122,138.68,138.65,18.16026083]
[1745088161651,26.8,138.69,138.64,7.2138]
[1745088162146,7.2131,138.67,138.64,7.2138]
[1745088162548,26.8,138.69,138.64,7.2138]
[1745088162849,7.2127,138.67,138.64,7.2138]
[1745088163752,8.95046083,138.68,138.64,7.2138]
[1745088167056,7.2139,138.65,138.62,7.2148]
[1745088167953,16.16376083,138.66,138.63,7.2144]
[1745088169654,7.2138,138.65,138.63,7.2144]